[Event "Fast Chess"]
[Site "ChessKid.com"]
[Date "2020.03.31"]
[Round "2"]
[White "Li, Patrick"]
[Black "Hlinka, Patricia"]
[Result "0-1"]
[ECO "C40"]
[WhiteElo "989"]
[BlackElo "1102"]
[PlyCount "60"]
[EventDate "2020.??.??"]
[TimeControl "180"]
[WhiteClock "0:00:10"]
[BlackClock "0:00:02"]

1. e4 {[%emt 0:00:04]} e5 {[%emt 0:00:03]} 2. Nf3 {[%emt 0:00:01]} f6 {[%emt 0:
00:05]} 3. Nc3 {[%emt 0:00:00]} d6 {[%emt 0:00:04]} 4. Bc4 {[%emt 0:00:14]} Nh6
{[%emt 0:00:10]} 5. O-O {[%emt 0:00:02]} d5 {[%emt 0:00:06]} 6. exd5 {[%emt 0:
00:06]} c6 {[%emt 0:00:05]} 7. dxc6 {[%emt 0:00:04]} bxc6 {[%emt 0:00:03]} 8.
d4 {[%emt 0:00:10]} e4 {[%emt 0:00:02]} 9. Nh4 {[%emt 0:00:08]} f5 {[%emt 0:00:
10]} 10. Re1 {[%emt 0:00:09]} e3 {[%emt 0:00:04]} 11. Rxe3+ {[%emt 0:00:05]}
Kd7 {[%emt 0:00:17]} 12. Re5 {[%emt 0:00:14]} Kd6 {[%emt 0:00:07]} 13. Bd5 {
[%emt 0:00:04]} Kc7 {[%emt 0:00:13]} 14. Bc4 {[%emt 0:00:19]} Nf7 {[%emt 0:00:
10]} 15. Re4 {[%emt 0:00:04]} fxe4 {[%emt 0:00:07]} 16. Nxe4 {[%emt 0:00:04]}
c5 {[%emt 0:00:06]} 17. Bd5 {[%emt 0:00:17]} Qxd5 {[%emt 0:00:08]} 18. Bf4+ {
[%emt 0:00:14]} Kb7 {[%emt 0:00:10]} 19. h3 {[%emt 0:00:07]} Qxe4 {[%emt 0:00:
05]} 20. Qd2 {[%emt 0:00:05]} Qxd4 {[%emt 0:00:11]} 21. Qxd4 {[%emt 0:00:02]}
cxd4 {[%emt 0:00:02]} 22. Bxb8 {[%emt 0:00:02]} Rxb8 {[%emt 0:00:03]} 23. Rd1 {
[%emt 0:00:00]} Bc5 {[%emt 0:00:12]} 24. Rd3 {[%emt 0:00:01]} Bf5 {[%emt 0:00:
02]} 25. Rf3 {[%emt 0:00:03]} Rbd8 {[%emt 0:00:01]} 26. Rxf5 {[%emt 0:00:02]}
Ne5 {[%emt 0:00:00]} 27. Rxe5 {[%emt 0:00:03]} g6 {[%emt 0:00:00]} 28. Rxc5 {
[%emt 0:00:03]} Rhe8 {[%emt 0:00:00]} 29. Kh2 {[%emt 0:00:06]} d3 {[%emt 0:00:
00]} 30. f3 {[%emt 0:00:03]} dxc2 {[%emt 0:00:04] NeatBouncyCone won on time}
0-1

[Event "Fast Chess"]
[Site "ChessKid.com"]
[Date "2020.03.31"]
[Round "2"]
[White "Georgiev, Maximilian"]
[Black "Hessenberger, Oliver"]
[Result "1-0"]
[ECO "C65"]
[WhiteElo "1362"]
[BlackElo "1054"]
[PlyCount "61"]
[EventDate "2020.??.??"]
[TimeControl "180"]
[WhiteClock "0:00:28"]
[BlackClock "0:01:42"]

1. e4 {[%emt 0:00:00]} e5 {[%emt 0:00:01]} 2. Nf3 {[%emt 0:00:02]} Nc6 {
[%emt 0:00:03]} 3. Bb5 {[%emt 0:00:01]} Nf6 {[%emt 0:00:02]} 4. Bxc6 {[%emt 0:
00:03]} dxc6 {[%emt 0:00:04]} 5. Nxe5 {[%emt 0:00:02]} Bd6 {[%emt 0:00:04]} 6.
Nf3 {[%emt 0:00:07]} Nxe4 {[%emt 0:00:03]} 7. Qe2 {[%emt 0:00:02]} Bg4 {
[%emt 0:00:12]} 8. Qxe4+ {[%emt 0:00:03]} Qe7 {[%emt 0:00:06]} 9. Qxe7+ {
[%emt 0:00:04]} Bxe7 {[%emt 0:00:02]} 10. O-O {[%emt 0:00:02]} Bxf3 {[%emt 0:
00:02]} 11. gxf3 {[%emt 0:00:01]} O-O {[%emt 0:00:04]} 12. Nc3 {[%emt 0:00:02]}
Bb4 {[%emt 0:00:09]} 13. a3 {[%emt 0:00:02]} Bxc3 {[%emt 0:00:10]} 14. dxc3 {
[%emt 0:00:02]} Rad8 {[%emt 0:00:06]} 15. Re1 {[%emt 0:00:03]} Rfe8 {[%emt 0:
00:04]} 16. Rxe8+ {[%emt 0:00:03]} Rxe8 {[%emt 0:00:02]} 17. Bf4 {[%emt 0:00:
03]} Re2 {[%emt 0:00:06]} 18. Bxc7 {[%emt 0:00:02]} a6 {[%emt 0:00:05]} 19. Rd1
{[%emt 0:00:03]} h6 {[%emt 0:00:06]} 20. c4 {[%emt 0:00:04]} Rxc2 {[%emt 0:00:
03]} 21. b4 {[%emt 0:00:02]} Rxc4 {[%emt 0:00:07]} 22. Rd8+ {[%emt 0:00:03]}
Kh7 {[%emt 0:00:03]} 23. Rb8 {[%emt 0:00:04]} Rc3 {[%emt 0:00:06]} 24. Be5 {
[%emt 0:00:04]} Rxf3 {[%emt 0:00:10]} 25. Rxb7 {[%emt 0:00:02]} Rxa3 {[%emt 0:
00:02]} 26. Rxf7 {[%emt 0:00:02]} Rb3 {[%emt 0:00:07]} 27. Rxg7+ {[%emt 0:00:
02]} Kh8 {[%emt 0:00:07]} 28. Rg3+ {[%emt 0:00:02]} Kh7 {[%emt 0:00:11]} 29.
Rxb3 {[%emt 0:00:02]} c5 {[%emt 0:00:05]} 30. bxc5 {[%emt 0:00:02]} a5 {
[%emt 0:00:01]} 31. Ra3 {[%emt 0:00:02] TallSnazzyBall won by resignation} 1-0

[Event "Fast Chess"]
[Site "ChessKid.com"]
[Date "2020.03.31"]
[Round "2"]
[White "Sasse, Gabriel"]
[Black "Li, Tobias"]
[Result "0-1"]
[ECO "C20"]
[WhiteElo "1200"]
[BlackElo "1230"]
[PlyCount "52"]
[EventDate "2020.??.??"]
[TimeControl "180"]
[WhiteClock "0:01:25"]
[BlackClock "0:01:14"]

1. e4 {[%emt 0:00:01]} e5 {[%emt 0:00:02]} 2. Qh5 {[%emt 0:00:01]} Nc6 {
[%emt 0:00:03]} 3. Bc4 {[%emt 0:00:04]} g6 {[%emt 0:00:01]} 4. Qf3 {[%emt 0:00:
02]} Nf6 {[%emt 0:00:02]} 5. d3 {[%emt 0:00:03]} Nd4 {[%emt 0:00:04]} 6. Qd1 {
[%emt 0:00:08]} Bb4+ {[%emt 0:00:06]} 7. c3 {[%emt 0:00:04]} Ba5 {[%emt 0:00:
06]} 8. b4 {[%emt 0:00:03]} Bb6 {[%emt 0:00:06]} 9. cxd4 {[%emt 0:00:03]} Bxd4
{[%emt 0:00:02]} 10. Qf3 {[%emt 0:00:04]} Bxa1 {[%emt 0:00:03]} 11. Bg5 {
[%emt 0:00:02]} O-O {[%emt 0:00:13]} 12. Bxf6 {[%emt 0:00:03]} Qe8 {[%emt 0:00:
01]} 13. Qh3 {[%emt 0:00:10]} d5 {[%emt 0:00:06]} 14. exd5 {[%emt 0:00:04]}
Bxh3 {[%emt 0:00:02]} 15. gxh3 {[%emt 0:00:02]} c6 {[%emt 0:00:09]} 16. dxc6 {
[%emt 0:00:03]} Qxc6 {[%emt 0:00:01]} 17. b5 {[%emt 0:00:04]} Qxh1 {[%emt 0:00:
03]} 18. Bxe5 {[%emt 0:00:06]} Qxg1+ {[%emt 0:00:02]} 19. Ke2 {[%emt 0:00:03]}
Bxe5 {[%emt 0:00:07]} 20. d4 {[%emt 0:00:05]} Bxd4 {[%emt 0:00:01]} 21. Kd3 {
[%emt 0:00:02]} Qxf2 {[%emt 0:00:02]} 22. Na3 {[%emt 0:00:04]} Qe3+ {[%emt 0:
00:02]} 23. Kc2 {[%emt 0:00:02]} Qc3+ {[%emt 0:00:03]} 24. Kd1 {[%emt 0:00:12]}
Be3 {[%emt 0:00:02]} 25. Nb1 {[%emt 0:00:03]} Qb2 {[%emt 0:00:03]} 26. Na3 {
[%emt 0:00:08]} Qd2# {[%emt 0:00:03] OnlyHungryKiwi won by checkmate} 0-1

[Event "Fast Chess"]
[Site "ChessKid.com"]
[Date "2020.03.31"]
[Round "3"]
[White "Li, Tobias"]
[Black "Hlinka, Patricia"]
[Result "1-0"]
[ECO "C25"]
[WhiteElo "1247"]
[BlackElo "1097"]
[PlyCount "81"]
[EventDate "2020.??.??"]
[TimeControl "180"]
[WhiteClock "0:00:02"]
[BlackClock "0:01:29"]

1. e4 {[%emt 0:00:01]} e5 {[%emt 0:00:00]} 2. Nf3 {[%emt 0:00:01]} Bc5 {
[%emt 0:00:03]} 3. Nc3 {[%emt 0:00:02]} d6 {[%emt 0:00:05]} 4. d4 {[%emt 0:00:
04]} exd4 {[%emt 0:00:07]} 5. Nxd4 {[%emt 0:00:00]} Qh4 {[%emt 0:00:05]} 6. Be2
{[%emt 0:00:05]} Bxd4 {[%emt 0:00:06]} 7. Qxd4 {[%emt 0:00:02]} c5 {[%emt 0:00:
13]} 8. Qxg7 {[%emt 0:00:04]} Qf6 {[%emt 0:00:08]} 9. Qxf6 {[%emt 0:00:01]}
Nxf6 {[%emt 0:00:04]} 10. O-O {[%emt 0:00:02]} Rg8 {[%emt 0:00:08]} 11. h3 {
[%emt 0:00:03]} d5 {[%emt 0:00:15]} 12. Nxd5 {[%emt 0:00:04]} Nxd5 {[%emt 0:00:
07]} 13. exd5 {[%emt 0:00:01]} Bf5 {[%emt 0:00:10]} 14. c3 {[%emt 0:00:02]} Be4
{[%emt 0:00:04]} 15. Bf3 {[%emt 0:00:01]} Bxf3 {[%emt 0:00:04]} 16. Kh2 {
[%emt 0:00:05]} Bxg2 {[%emt 0:00:03]} 17. Rg1 {[%emt 0:00:03]} Na6 {[%emt 0:00:
10]} 18. Rxg2 {[%emt 0:00:02]} Rxg2+ {[%emt 0:00:03]} 19. Kxg2 {[%emt 0:00:02]}
O-O-O {[%emt 0:00:05]} 20. Bg5 {[%emt 0:00:03]} Rxd5 {[%emt 0:00:04]} 21. Be3 {
[%emt 0:00:01]} Rd8 {[%emt 0:00:07]} 22. Re1 {[%emt 0:00:04]} Re8 {[%emt 0:00:
06]} 23. Kf3 {[%emt 0:00:02]} f5 {[%emt 0:00:04]} 24. Re2 {[%emt 0:00:01]} Nc7
{[%emt 0:00:09]} 25. Bf4 {[%emt 0:00:05]} Rxe2 {[%emt 0:00:06]} 26. Kxe2 {
[%emt 0:00:02]} Ne6 {[%emt 0:00:05]} 27. Bh6 {[%emt 0:00:01]} Kd7 {[%emt 0:00:
04]} 28. Ke3 {[%emt 0:00:02]} f4+ {[%emt 0:00:03]} 29. Bxf4 {[%emt 0:00:03]}
Nxf4 {[%emt 0:00:01]} 30. Kxf4 {[%emt 0:00:01]} Ke6 {[%emt 0:00:00]} 31. f3 {
[%emt 0:00:01]} c4 {[%emt 0:00:01]} 32. Kg4 {[%emt 0:00:01]} b5 {[%emt 0:00:01]
} 33. f4 {[%emt 0:00:01]} a6 {[%emt 0:00:01]} 34. h4 {[%emt 0:00:01]} h6 {
[%emt 0:00:01]} 35. f5+ {[%emt 0:00:01]} Kf6 {[%emt 0:00:00]} 36. h5 {[%emt 0:
00:02]} Kg7 {[%emt 0:00:01]} 37. a3 {[%emt 0:00:05]} Kh7 {[%emt 0:00:01]} 38.
Kh4 {[%emt 0:00:05]} Kg7 {[%emt 0:00:01]} 39. Kg4 {[%emt 0:00:01]} Kf6 {
[%emt 0:00:02]} 40. Kf4 {[%emt 0:00:02]} Kg7 {[%emt 0:00:00]} 41. Ke5 {[%emt 0:
00:01] OnlyHungryKiwi won on time} 1-0

[Event "Fast Chess"]
[Site "ChessKid.com"]
[Date "2020.03.31"]
[Round "3"]
[White "Georgiev, Maximilian"]
[Black "Li, Patrick"]
[Result "1-0"]
[ECO "C65"]
[WhiteElo "1364"]
[BlackElo "984"]
[PlyCount "27"]
[EventDate "2020.??.??"]
[TimeControl "180"]
[WhiteClock "0:01:43"]
[BlackClock "0:02:14"]

1. e4 {[%emt 0:00:00]} e5 {[%emt 0:00:01]} 2. Nf3 {[%emt 0:00:02]} Nc6 {
[%emt 0:00:02]} 3. Bb5 {[%emt 0:00:02]} Nf6 {[%emt 0:00:01]} 4. Bxc6 {[%emt 0:
00:02]} dxc6 {[%emt 0:00:11]} 5. Nxe5 {[%emt 0:00:02]} Bc5 {[%emt 0:00:10]} 6.
O-O {[%emt 0:00:04]} Qd4 {[%emt 0:00:06]} 7. Nf3 {[%emt 0:00:02]} Qb4 {[%emt 0:
00:06]} 8. e5 {[%emt 0:00:05]} Ng4 {[%emt 0:00:04]} 9. Nc3 {[%emt 0:00:11]} Qf4
{[%emt 0:00:09]} 10. d4 {[%emt 0:00:07]} Bb4 {[%emt 0:00:13]} 11. Bxf4 {
[%emt 0:00:02]} Bxc3 {[%emt 0:00:04]} 12. bxc3 {[%emt 0:00:03]} O-O {[%emt 0:
00:10]} 13. e6 {[%emt 0:00:02]} fxe6 {[%emt 0:00:03]} 14. Bxc7 {[%emt 0:00:02]
TallSnazzyBall won by resignation} 1-0

[Event "Fast Chess"]
[Site "ChessKid.com"]
[Date "2020.03.31"]
[Round "3"]
[White "Hessenberger, Oliver"]
[Black "Sasse, Gabriel"]
[Result "1-0"]
[ECO "C61"]
[WhiteElo "1130"]
[BlackElo "1190"]
[PlyCount "63"]
[EventDate "2020.??.??"]
[TimeControl "180"]
[WhiteClock "0:00:04"]
[BlackClock "0:00:07"]

1. e4 {[%emt 0:00:00]} e5 {[%emt 0:00:26]} 2. Nf3 {[%emt 0:00:03]} Nc6 {
[%emt 0:00:46]} 3. Bb5 {[%emt 0:00:03]} Nd4 {[%emt 0:00:02]} 4. Nxe5 {[%emt 0:
00:05]} Nxb5 {[%emt 0:00:03]} 5. O-O {[%emt 0:00:03]} Qg5 {[%emt 0:00:04]} 6.
d4 {[%emt 0:00:18]} d6 {[%emt 0:00:01]} 7. Nf3 {[%emt 0:00:08]} Qg6 {[%emt 0:
00:03]} 8. Nh4 {[%emt 0:00:07]} Qxe4 {[%emt 0:00:12]} 9. Re1 {[%emt 0:00:04]}
Qxe1+ {[%emt 0:00:04]} 10. Qxe1+ {[%emt 0:00:04]} Ne7 {[%emt 0:00:04]} 11. Qf1
{[%emt 0:00:31]} Be6 {[%emt 0:00:01]} 12. Qxb5+ {[%emt 0:00:07]} c6 {[%emt 0:
00:05]} 13. Qxb7 {[%emt 0:00:03]} Rc8 {[%emt 0:00:06]} 14. Qxa7 {[%emt 0:00:02]
} Nd5 {[%emt 0:00:05]} 15. Nc3 {[%emt 0:00:19]} Be7 {[%emt 0:00:01]} 16. Nxd5 {
[%emt 0:00:03]} Bxd5 {[%emt 0:00:03]} 17. Nf5 {[%emt 0:00:07]} O-O {[%emt 0:00:
07]} 18. Nxe7+ {[%emt 0:00:06]} Kh8 {[%emt 0:00:05]} 19. Nxc8 {[%emt 0:00:02]}
Rxc8 {[%emt 0:00:01]} 20. h3 {[%emt 0:00:06]} Re8 {[%emt 0:00:03]} 21. Bf4 {
[%emt 0:00:11]} c5 {[%emt 0:00:09]} 22. Bxd6 {[%emt 0:00:06]} cxd4 {[%emt 0:00:
03]} 23. Rd1 {[%emt 0:00:05]} Bc6 {[%emt 0:00:04]} 24. Rxd4 {[%emt 0:00:01]}
Bxg2 {[%emt 0:00:02]} 25. Bf4 {[%emt 0:00:04]} Rg8 {[%emt 0:00:04]} 26. Qd7 {
[%emt 0:00:01]} h6 {[%emt 0:00:05]} 27. Qd8 {[%emt 0:00:01]} Rxd8 {[%emt 0:00:
02]} 28. Rxd8+ {[%emt 0:00:02]} Kh7 {[%emt 0:00:02]} 29. Bd6 {[%emt 0:00:02]}
Kg6 {[%emt 0:00:01]} 30. Bc5 {[%emt 0:00:01]} Kf5 {[%emt 0:00:01]} 31. Bb6 {
[%emt 0:00:01]} Ke4 {[%emt 0:00:01]} 32. Bc7 {[%emt 0:00:01] VastMellowGhost
won on time} 1-0

[Event "Fast Chess"]
[Site "ChessKid.com"]
[Date "2020.04.01"]
[Round "1"]
[White "Sasse, Gabriel"]
[Black "Georgiev, Maximilian"]
[Result "0-1"]
[ECO "C55"]
[WhiteElo "1185"]
[BlackElo "1365"]
[PlyCount "144"]
[EventDate "2020.??.??"]
[TimeControl "300+10"]
[WhiteClock "0:02:00"]
[BlackClock "0:01:26"]

1. e4 {[%emt 0:00:09]} e5 {[%emt 0:00:11]} 2. Nf3 {[%emt 0:00:10]} Nc6 {
[%emt 0:00:11]} 3. Bc4 {[%emt 0:00:10]} h6 {[%emt 0:00:11]} 4. Nc3 {[%emt 0:00:
10]} Nf6 {[%emt 0:00:11]} 5. h3 {[%emt 0:00:11]} Bb4 {[%emt 0:00:11]} 6. O-O {
[%emt 0:00:11]} Bxc3 {[%emt 0:00:11]} 7. dxc3 {[%emt 0:00:10]} Nxe4 {[%emt 0:
00:11]} 8. Re1 {[%emt 0:00:14]} Nf6 {[%emt 0:00:12]} 9. Nxe5 {[%emt 0:00:14]}
O-O {[%emt 0:00:16]} 10. Nxc6 {[%emt 0:00:13]} bxc6 {[%emt 0:00:12]} 11. Qf3 {
[%emt 0:00:12]} Rb8 {[%emt 0:00:13]} 12. Qg3 {[%emt 0:00:11]} Bb7 {[%emt 0:00:
13]} 13. Bxh6 {[%emt 0:00:12]} g6 {[%emt 0:00:17]} 14. Bxf8 {[%emt 0:00:12]}
Qxf8 {[%emt 0:00:12]} 15. Qxc7 {[%emt 0:00:19]} Qc8 {[%emt 0:00:11]} 16. Qxc8+
{[%emt 0:00:12]} Rxc8 {[%emt 0:00:11]} 17. Re2 {[%emt 0:00:14]} d5 {[%emt 0:00:
13]} 18. Bd3 {[%emt 0:00:13]} c5 {[%emt 0:00:13]} 19. b4 {[%emt 0:00:12]} c4 {
[%emt 0:00:11]} 20. Bxc4 {[%emt 0:00:19]} dxc4 {[%emt 0:00:11]} 21. Re7 {
[%emt 0:00:15]} Bd5 {[%emt 0:00:12]} 22. Rxa7 {[%emt 0:00:14]} Ne4 {[%emt 0:00:
12]} 23. Rd1 {[%emt 0:00:14]} Nxc3 {[%emt 0:00:14]} 24. Rd4 {[%emt 0:00:13]}
Be6 {[%emt 0:00:14]} 25. a3 {[%emt 0:00:17]} Ne2+ {[%emt 0:00:11]} 26. Kf1 {
[%emt 0:00:14]} Nxd4 {[%emt 0:00:11]} 27. Rb7 {[%emt 0:00:15]} Nxc2 {[%emt 0:
00:13]} 28. Rb6 {[%emt 0:00:11]} Nxa3 {[%emt 0:00:12]} 29. Ke2 {[%emt 0:00:14]}
c3 {[%emt 0:00:11]} 30. Kd1 {[%emt 0:00:11]} c2+ {[%emt 0:00:11]} 31. Kc1 {
[%emt 0:00:11]} g5 {[%emt 0:00:15]} 32. Ra6 {[%emt 0:00:14]} Bc4 {[%emt 0:00:
13]} 33. Rxa3 {[%emt 0:00:12]} Bd3 {[%emt 0:00:12]} 34. Ra4 {[%emt 0:00:13]} f5
{[%emt 0:00:12]} 35. b5 {[%emt 0:00:12]} Bxb5 {[%emt 0:00:12]} 36. Ra5 {
[%emt 0:00:11]} Bd3 {[%emt 0:00:13]} 37. Rd5 {[%emt 0:00:13]} Be4 {[%emt 0:00:
12]} 38. Re5 {[%emt 0:00:11]} Kf7 {[%emt 0:00:13]} 39. Ra5 {[%emt 0:00:16]} Kf6
{[%emt 0:00:13]} 40. f3 {[%emt 0:00:10]} Bd3 {[%emt 0:00:12]} 41. g4 {[%emt 0:
00:12]} fxg4 {[%emt 0:00:12]} 42. hxg4 {[%emt 0:00:10]} Rc3 {[%emt 0:00:16]}
43. Ra4 {[%emt 0:00:27]} Be2 {[%emt 0:00:12]} 44. f4 {[%emt 0:00:14]} Bxg4 {
[%emt 0:00:13]} 45. fxg5+ {[%emt 0:00:11]} Kxg5 {[%emt 0:00:11]} 46. Ra5+ {
[%emt 0:00:11]} Kf6 {[%emt 0:00:16]} 47. Ra4 {[%emt 0:00:21]} Bd7 {[%emt 0:00:
13]} 48. Rf4+ {[%emt 0:00:12]} Bf5 {[%emt 0:00:12]} 49. Rf1 {[%emt 0:00:19]}
Ra3 {[%emt 0:00:13]} 50. Kb2 {[%emt 0:00:13]} Ra8 {[%emt 0:00:18]} 51. Kc3 {
[%emt 0:00:18]} Ra1 {[%emt 0:00:15]} 52. Rxa1 {[%emt 0:00:15]} Kg5 {[%emt 0:00:
15]} 53. Rg1+ {[%emt 0:00:12]} Kf4 {[%emt 0:00:12]} 54. Rf1+ {[%emt 0:00:10]}
Ke4 {[%emt 0:00:11]} 55. Re1+ {[%emt 0:00:13]} Kf4 {[%emt 0:00:12]} 56. Rf1+ {
[%emt 0:00:11]} Kg5 {[%emt 0:00:11]} 57. Rg1+ {[%emt 0:00:11]} Kf6 {[%emt 0:00:
11]} 58. Rf1 {[%emt 0:00:10]} Ke6 {[%emt 0:00:13]} 59. Rf2 {[%emt 0:00:17]} Kf6
{[%emt 0:00:13]} 60. Rf1 {[%emt 0:00:18]} Ke6 {[%emt 0:00:21]} 61. Re1+ {
[%emt 0:00:11]} Kd5 {[%emt 0:00:12]} 62. Re2 {[%emt 0:00:13]} c1=Q+ {[%emt 0:
00:12]} 63. Kb3 {[%emt 0:00:17]} Qd1+ {[%emt 0:00:12]} 64. Rc2 {[%emt 0:00:14]}
Qxc2+ {[%emt 0:00:12]} 65. Kb4 {[%emt 0:00:10]} Kd4 {[%emt 0:00:14]} 66. Kb5 {
[%emt 0:00:11]} Qc1 {[%emt 0:00:13]} 67. Kb6 {[%emt 0:00:11]} Kd5 {[%emt 0:00:
11]} 68. Kb7 {[%emt 0:00:10]} Kd6 {[%emt 0:00:11]} 69. Kb6 {[%emt 0:00:10]}
Qb1+ {[%emt 0:00:11]} 70. Ka5 {[%emt 0:00:11]} Kc5 {[%emt 0:00:11]} 71. Ka4 {
[%emt 0:00:11]} Qb8 {[%emt 0:00:12]} 72. Ka5 {[%emt 0:00:14]} Qb5# {[%emt 0:00:
11] TallSnazzyBall won by checkmate} 0-1

[Event "Fast Chess"]
[Site "ChessKid.com"]
[Date "2020.04.01"]
[Round "1"]
[White "Li, Tobias"]
[Black "Hessenberger, Oliver"]
[Result "0-1"]
[ECO "C44"]
[WhiteElo "1220"]
[BlackElo "1192"]
[PlyCount "124"]
[EventDate "2020.??.??"]
[TimeControl "300+10"]
[WhiteClock "0:00:18"]
[BlackClock "0:02:08"]

1. e4 {[%emt 0:00:11]} e5 {[%emt 0:00:12]} 2. Nf3 {[%emt 0:00:11]} Nc6 {
[%emt 0:00:12]} 3. d4 {[%emt 0:00:13]} Nf6 {[%emt 0:00:09]} 4. dxe5 {[%emt 0:
00:12]} Nxe5 {[%emt 0:00:11]} 5. Nxe5 {[%emt 0:00:12]} Bd6 {[%emt 0:00:15]} 6.
Nf3 {[%emt 0:00:12]} Bb4+ {[%emt 0:00:16]} 7. Nbd2 {[%emt 0:00:18]} Bxd2+ {
[%emt 0:00:12]} 8. Bxd2 {[%emt 0:00:11]} c6 {[%emt 0:00:12]} 9. Bd3 {[%emt 0:
00:13]} d5 {[%emt 0:00:12]} 10. exd5 {[%emt 0:00:18]} cxd5 {[%emt 0:00:12]} 11.
Qe2+ {[%emt 0:00:11]} Be6 {[%emt 0:00:14]} 12. O-O {[%emt 0:00:10]} O-O {
[%emt 0:00:17]} 13. h3 {[%emt 0:00:11]} Rc8 {[%emt 0:00:23]} 14. c3 {[%emt 0:
00:14]} Bd7 {[%emt 0:00:31]} 15. Bc2 {[%emt 0:00:14]} Qe8 {[%emt 0:00:23]} 16.
Rfe1 {[%emt 0:00:22]} Bb5 {[%emt 0:00:12]} 17. Qxe8 {[%emt 0:00:12]} Rfxe8 {
[%emt 0:00:13]} 18. Rxe8+ {[%emt 0:00:11]} Rxe8 {[%emt 0:00:17]} 19. a4 {
[%emt 0:00:12]} Be2 {[%emt 0:00:22]} 20. Re1 {[%emt 0:00:15]} g6 {[%emt 0:00:
22]} 21. Bg5 {[%emt 0:00:16]} Nh5 {[%emt 0:00:22]} 22. Bd3 {[%emt 0:00:16]} Ng7
{[%emt 0:00:23]} 23. Rxe2 {[%emt 0:00:14]} Rxe2 {[%emt 0:00:19]} 24. Bxe2 {
[%emt 0:00:14]} Nf5 {[%emt 0:00:12]} 25. Ne5 {[%emt 0:00:14]} Kg7 {[%emt 0:00:
13]} 26. Nd7 {[%emt 0:00:15]} Nd6 {[%emt 0:00:17]} 27. Bf6+ {[%emt 0:00:17]}
Kg8 {[%emt 0:00:15]} 28. Nc5 {[%emt 0:00:15]} b6 {[%emt 0:00:21]} 29. Nb3 {
[%emt 0:00:13]} Ne4 {[%emt 0:00:18]} 30. Bd4 {[%emt 0:00:19]} g5 {[%emt 0:00:
18]} 31. Bf3 {[%emt 0:00:13]} Nd6 {[%emt 0:00:19]} 32. Bxd5 {[%emt 0:00:12]} h5
{[%emt 0:00:15]} 33. Bf3 {[%emt 0:00:13]} Nf5 {[%emt 0:00:13]} 34. Bxh5 {
[%emt 0:00:14]} Nxd4 {[%emt 0:00:17]} 35. cxd4 {[%emt 0:00:12]} Kg7 {[%emt 0:
00:11]} 36. d5 {[%emt 0:00:11]} Kf8 {[%emt 0:00:12]} 37. g3 {[%emt 0:00:14]}
Ke7 {[%emt 0:00:11]} 38. f4 {[%emt 0:00:13]} gxf4 {[%emt 0:00:12]} 39. gxf4 {
[%emt 0:00:12]} Kd6 {[%emt 0:00:11]} 40. Bf3 {[%emt 0:00:10]} b5 {[%emt 0:00:
17]} 41. Kg2 {[%emt 0:00:09]} bxa4 {[%emt 0:00:17]} 42. Kg1 {[%emt 0:00:09]}
axb3 {[%emt 0:00:12]} 43. Kg2 {[%emt 0:00:09]} a5 {[%emt 0:00:12]} 44. Kf2 {
[%emt 0:00:16]} a4 {[%emt 0:00:11]} 45. Ke2 {[%emt 0:00:10]} a3 {[%emt 0:00:11]
} 46. Kd2 {[%emt 0:00:11]} a2 {[%emt 0:00:11]} 47. Kc3 {[%emt 0:00:18]} a1=Q {
[%emt 0:00:12]} 48. Kxb3 {[%emt 0:00:10]} Qf1 {[%emt 0:00:13]} 49. Bh5 {
[%emt 0:00:14]} Qxh3+ {[%emt 0:00:13]} 50. Ka2 {[%emt 0:00:14]} Qxh5 {[%emt 0:
00:15]} 51. Ka3 {[%emt 0:00:12]} Qxd5 {[%emt 0:00:12]} 52. b3 {[%emt 0:00:12]}
Qd4 {[%emt 0:00:13]} 53. b4 {[%emt 0:00:12]} Qxf4 {[%emt 0:00:11]} 54. Ka4 {
[%emt 0:00:11]} Qh6 {[%emt 0:00:12]} 55. Ka5 {[%emt 0:00:11]} Qf8 {[%emt 0:00:
15]} 56. b5 {[%emt 0:00:12]} Qa8+ {[%emt 0:00:14]} 57. Kb4 {[%emt 0:00:10]} f5
{[%emt 0:00:12]} 58. Kc4 {[%emt 0:00:10]} f4 {[%emt 0:00:10]} 59. b6 {[%emt 0:
00:12]} Qc8+ {[%emt 0:00:10]} 60. Kb5 {[%emt 0:00:13]} Qc5+ {[%emt 0:00:11]}
61. Ka6 {[%emt 0:00:11]} Kc6 {[%emt 0:00:11]} 62. b7 {[%emt 0:00:12]} Qb6# {
[%emt 0:00:11] VastMellowGhost won by checkmate} 0-1

[Event "Fast Chess"]
[Site "ChessKid.com"]
[Date "2020.04.01"]
[Round "2"]
[White "Georgiev, Maximilian"]
[Black "Halimi, Dorian"]
[Result "1-0"]
[ECO "C62"]
[WhiteElo "1366"]
[BlackElo "862"]
[PlyCount "101"]
[EventDate "2020.??.??"]
[TimeControl "300+10"]
[WhiteClock "0:02:05"]
[BlackClock "0:02:34"]

1. e4 {[%emt 0:00:10]} e5 {[%emt 0:00:13]} 2. Nf3 {[%emt 0:00:11]} Nc6 {
[%emt 0:00:13]} 3. Bb5 {[%emt 0:00:11]} d6 {[%emt 0:00:17]} 4. Nc3 {[%emt 0:00:
12]} Bg4 {[%emt 0:00:11]} 5. h3 {[%emt 0:00:15]} Bxf3 {[%emt 0:00:12]} 6. Qxf3
{[%emt 0:00:11]} Qd7 {[%emt 0:00:17]} 7. O-O {[%emt 0:00:14]} O-O-O {[%emt 0:
00:13]} 8. Re1 {[%emt 0:00:14]} a6 {[%emt 0:00:12]} 9. Ba4 {[%emt 0:00:12]} b5
{[%emt 0:00:12]} 10. Bb3 {[%emt 0:00:11]} b4 {[%emt 0:00:12]} 11. Nd5 {[%emt 0:
00:12]} a5 {[%emt 0:00:13]} 12. Ne3 {[%emt 0:00:19]} Nf6 {[%emt 0:00:17]} 13.
d3 {[%emt 0:00:16]} g6 {[%emt 0:00:14]} 14. Ba4 {[%emt 0:00:14]} h5 {[%emt 0:
00:12]} 15. h4 {[%emt 0:00:13]} Be7 {[%emt 0:00:21]} 16. Nd5 {[%emt 0:00:12]}
Nxd5 {[%emt 0:00:18]} 17. exd5 {[%emt 0:00:11]} Nd4 {[%emt 0:00:11]} 18. Bxd7+
{[%emt 0:00:11]} Rxd7 {[%emt 0:00:12]} 19. Qd1 {[%emt 0:00:12]} Bxh4 {[%emt 0:
00:16]} 20. c3 {[%emt 0:00:13]} Nb5 {[%emt 0:00:15]} 21. cxb4 {[%emt 0:00:12]}
axb4 {[%emt 0:00:11]} 22. a4 {[%emt 0:00:13]} Na7 {[%emt 0:00:12]} 23. a5 {
[%emt 0:00:13]} Bf6 {[%emt 0:00:13]} 24. Qf3 {[%emt 0:00:13]} g5 {[%emt 0:00:
11]} 25. Qxf6 {[%emt 0:00:13]} Rh7 {[%emt 0:00:13]} 26. Qxg5 {[%emt 0:00:12]}
h4 {[%emt 0:00:13]} 27. g3 {[%emt 0:00:14]} h3 {[%emt 0:00:14]} 28. Kf1 {
[%emt 0:00:19]} h2 {[%emt 0:00:12]} 29. Ke2 {[%emt 0:00:12]} Nb5 {[%emt 0:00:
17]} 30. Qg8+ {[%emt 0:00:13]} Rd8 {[%emt 0:00:16]} 31. Qxh7 {[%emt 0:00:11]}
Nd4+ {[%emt 0:00:15]} 32. Ke3 {[%emt 0:00:13]} Nc2+ {[%emt 0:00:11]} 33. Kd2 {
[%emt 0:00:13]} Nxa1 {[%emt 0:00:12]} 34. Qxh2 {[%emt 0:00:12]} f6 {[%emt 0:00:
13]} 35. Kd1 {[%emt 0:00:17]} c5 {[%emt 0:00:13]} 36. dxc6 {[%emt 0:00:12]} Kc7
{[%emt 0:00:13]} 37. Qg2 {[%emt 0:00:15]} Ra8 {[%emt 0:00:13]} 38. Bd2 {
[%emt 0:00:16]} Rxa5 {[%emt 0:00:12]} 39. Bxb4 {[%emt 0:00:11]} Rb5 {[%emt 0:
00:12]} 40. Bc3 {[%emt 0:00:18]} Nb3 {[%emt 0:00:13]} 41. Kc2 {[%emt 0:00:13]}
Nc5 {[%emt 0:00:16]} 42. b4 {[%emt 0:00:14]} Na6 {[%emt 0:00:17]} 43. Kb3 {
[%emt 0:00:13]} f5 {[%emt 0:00:15]} 44. g4 {[%emt 0:00:11]} f4 {[%emt 0:00:12]}
45. g5 {[%emt 0:00:15]} Nb8 {[%emt 0:00:14]} 46. g6 {[%emt 0:00:11]} Kd8 {
[%emt 0:00:12]} 47. g7 {[%emt 0:00:11]} Ke8 {[%emt 0:00:11]} 48. g8=Q+ {
[%emt 0:00:12]} Ke7 {[%emt 0:00:12]} 49. Q2g6 {[%emt 0:00:12]} Nxc6 {[%emt 0:
00:13]} 50. Q8h7+ {[%emt 0:00:13]} Kd8 {[%emt 0:00:15]} 51. Qgg8# {[%emt 0:00:
11] TallSnazzyBall won by checkmate} 1-0